bitfinex/quotes_BTCUSD_20260125
["timestamp","ask_amount","ask_price","bid_price","bid_amount"]
[1769301819964,0.03,89214.0,89211.0,0.56482041]
[1769301820165,0.03,89212.0,89211.0,0.56482041]
[1769301820367,0.04051504,89212.0,89211.0,0.53929395]
[1769301821383,0.04051504,89212.0,89211.0,0.53200068]
[1769301821756,0.04051504,89212.0,89211.0,0.53300068]
[1769301821956,0.03,89226.0,89211.0,0.53300068]
[1769301822158,0.03,89226.0,89211.0,0.53200068]
[1769301822358,0.03,89226.0,89211.0,0.28507899]
[1769301822592,0.29479872,89226.0,89211.0,0.28507899]
[1769301824054,0.29479872,89226.0,89211.0,0.29728837]
[1769301824256,0.29479872,89226.0,89211.0,0.24961299]
[1769301824510,0.29479872,89226.0,89211.0,0.24861299]
[1769301826302,0.29479872,89226.0,89211.0,0.21944]
[1769301827615,0.29479872,89226.0,89211.0,0.22044]
[1769301828177,0.29479872,89226.0,89211.0,0.21944]
[1769301828379,0.29479872,89226.0,89211.0,0.19391363]
[1769301830402,0.29479872,89226.0,89211.0,0.15744738]
[1769301831173,0.29479872,89226.0,89211.0,0.22470362]
[1769301831384,0.29479872,89226.0,89211.0,0.16865676]
[1769301831616,0.29479872,89226.0,89211.0,0.15844738]
[1769301831817,0.29479872,89226.0,89211.0,0.16965676]
[1769301832230,0.58042117,89226.0,89211.0,0.01220938]
[1769301833552,0.33951322,89226.0,89211.0,0.01120938]
[1769301833919,0.01051779,89225.0,89211.0,0.01120938]
[1769301834115,0.03,89223.0,89211.0,0.01120938]
[1769301834335,0.03,89221.0,89211.0,0.06725609]
[1769301834536,0.03,89219.0,89211.0,0.01220938]
[1769301834853,0.03,89217.0,89211.0,0.001]
[1769301835035,0.03,89215.0,89210.0,0.50804073]
[1769301835239,0.03,89213.0,89210.0,0.27974142]
[1769301835400,0.03,89211.0,89210.0,0.29095092]
[1769301835606,0.03,89211.0,89210.0,0.34699844]
[1769301836168,0.03,89211.0,89210.0,0.31782545]
[1769301836362,0.03,89211.0,89210.0,0.29229908]
[1769301836959,0.03,89211.0,89210.0,0.22504206]
[1769301837163,0.03,89211.0,89210.0,0.28108958]
[1769301837342,0.33951322,89226.0,89210.0,0.22504206]
[1769301837544,0.03,89225.0,89210.0,0.51417189]
[1769301837869,0.03,89225.0,89210.0,0.52538139]
[1769301838160,0.03,89225.0,89210.0,0.52438139]
[1769301838367,0.03,89225.0,89210.0,0.52538139]
[1769301838669,0.03,89225.0,89210.0,0.503502]
[1769301839468,0.03,89225.0,89210.0,0.502502]
[1769301839796,0.03,89225.0,89210.0,0.503502]
[1769301840167,0.03,89225.0,89211.0,0.01120938]
[1769301840671,0.03,89225.0,89210.0,0.503502]
[1769301840968,0.03,89225.0,89210.0,0.502502]
[1769301841170,0.03,89225.0,89213.0,0.01120912]
[1769301841636,0.03,89225.0,89214.0,0.011209]
[1769301842275,0.03,89225.0,89213.0,0.06725452]
[1769301842780,0.03,89225.0,89214.0,0.011209]
[1769301842942,0.03,89225.0,89215.0,0.01120887]
[1769301843144,0.03,89225.0,89216.0,0.01120875]
[1769301843481,0.03,89225.0,89215.0,0.01120887]
[1769301843687,0.03,89225.0,89214.0,0.05320578]
[1769301843896,0.03,89225.0,89215.0,0.01120887]
[1769301846197,0.03,89225.0,89214.0,0.02767981]
[1769301846198,0.03,89225.0,89214.0,0.00944701]
[1769301846435,0.03,89225.0,89216.0,0.01120875]
[1769301846620,0.03,89225.0,89215.0,0.01120887]
[1769301846999,0.03,89225.0,89215.0,0.06725325]
[1769301847200,0.03,89225.0,89215.0,0.01220887]
[1769301847383,0.03,89223.0,89215.0,0.01220887]
[1769301847720,0.03,89221.0,89215.0,0.01220887]
[1769301847901,0.03,89219.0,89215.0,0.01220887]
[1769301848101,0.03,89217.0,89215.0,0.01220887]
[1769301848300,0.04051689,89216.0,89215.0,0.01220887]
[1769301848518,0.04051689,89216.0,89214.0,0.06311361]
[1769301848721,0.04051689,89215.0,89214.0,0.06311361]
[1769301849105,0.04051686,89215.0,89214.0,0.06311361]
[1769301849529,0.04051686,89215.0,89214.0,0.02664802]
[1769301849726,0.03,89225.0,89216.0,0.01120875]
[1769301849926,0.23664684,89235.0,89224.0,0.01120774]
[1769301850150,0.23664684,89235.0,89225.0,0.00109218]
[1769301850536,0.0001496,89237.0,89228.0,0.06724322]
[1769301850747,0.03377221,89237.0,89228.0,0.01120724]
[1769301850904,0.03,89236.0,89230.0,0.06724173]
[1769301851243,0.03,89236.0,89229.0,0.01120711]
[1769301851682,0.03,89236.0,89235.0,0.08]
[1769301851837,0.0001496,89237.0,89235.0,0.0789122]
[1769301852001,0.0001496,89237.0,89235.0,0.06700845]
[1769301852207,0.0001496,89237.0,89235.0,0.06537657]
[1769301852422,0.0001496,89237.0,89235.0,0.03822226]
[1769301852625,0.0001496,89237.0,89229.0,0.01120711]
[1769301852828,0.00022955,89237.0,89229.0,0.01120711]
[1769301853176,0.00022955,89237.0,89228.0,0.01120724]
[1769301853846,0.00022955,89237.0,89229.0,0.01120711]
[1769301854042,0.00022955,89237.0,89228.0,0.06724338]
[1769301854298,0.00022955,89237.0,89229.0,0.01120711]
[1769301854646,0.00022955,89237.0,89228.0,0.06457419]
[1769301855056,0.00022955,89237.0,89230.0,0.01120699]
[1769301855259,0.00022955,89237.0,89229.0,0.06724267]
[1769301855458,0.00022955,89237.0,89229.0,0.01120711]
[1769301855664,0.00022955,89237.0,89227.0,0.35537299]
[1769301855865,0.00022955,89237.0,89228.0,0.06724319]
[1769301856187,0.00022955,89237.0,89228.0,0.05603595]
[1769301856597,0.00022955,89237.0,89228.0,0.01120724]
[1769301857291,0.00022955,89237.0,89229.0,0.01120711]
[1769301857459,0.00022955,89237.0,89230.0,0.01120699]
[1769301857817,0.01385182,89239.0,89229.0,0.01120711]
[1769301857994,0.28164684,89241.0,89229.0,0.01120711]
[1769301858146,0.03,89240.0,89229.0,0.01120711]
[1769301858348,0.03,89240.0,89230.0,0.28812983]
[1769301858548,0.03,89240.0,89228.0,0.06724344]
[1769301858786,0.06362216,89240.0,89228.0,0.06732339]
[1769301859098,0.06362216,89240.0,89229.0,0.01120711]
[1769301859599,0.06362216,89240.0,89230.0,0.29933682]
[1769301860362,0.06362216,89240.0,89230.0,0.28181454]
[1769301860581,0.06362216,89240.0,89235.0,0.01120636]
[1769301860881,0.30295201,89246.0,89234.0,0.06723888]
[1769301860882,0.29736414,89246.0,89234.0,0.06723888]
[1769301861305,0.29736414,89246.0,89234.0,0.06723862]
[1769301861694,0.03,89245.0,89234.0,0.01120649]
[1769301861893,0.03,89243.0,89234.0,0.01120649]
[1769301862237,0.03,89241.0,89234.0,0.01120649]
[1769301862413,0.00131219,89240.0,89235.0,0.01120636]
[1769301862628,0.29736414,89246.0,89234.0,0.01120649]
[1769301862825,0.29736414,89246.0,89234.0,0.06723887]
[1769301863028,0.29736414,89246.0,89234.0,0.01120649]
[1769301863190,0.3044096,89249.0,89236.0,0.06723704]
[1769301863388,0.03,89248.0,89236.0,0.01120623]
[1769301864020,0.03,89248.0,89234.0,0.06723782]
[1769301864422,0.03,89248.0,89234.0,0.01120649]
[1769301864606,0.05241725,89248.0,89233.0,0.01120661]
[1769301864805,0.05241725,89248.0,89232.0,0.01120674]
[1769301865187,0.05241725,89248.0,89234.0,0.001]
[1769301865643,0.05241725,89248.0,89233.0,0.01120661]
[1769301865958,0.05241725,89248.0,89232.0,0.06824034]
[1769301866118,0.05241725,89248.0,89232.0,0.01220674]
[1769301866321,0.05241725,89248.0,89231.0,0.34142928]
[1769301866971,0.05241725,89248.0,89232.0,0.06724037]
[1769301867298,0.05241725,89248.0,89233.0,0.01120661]
[1769301867517,0.05241725,89248.0,89232.0,0.04198838]
[1769301868142,0.05241725,89248.0,89233.0,0.001]
[1769301868320,0.05241725,89248.0,89233.0,0.01120661]
[1769301868523,0.05241725,89248.0,89232.0,0.01746736]
[1769301868723,0.05241725,89248.0,89240.0,0.08]
[1769301872168,0.03,89248.0,89240.0,0.08]
[1769301872498,0.03,89248.0,89240.0,0.07984668]
[1769301873671,0.03,89248.0,89240.0,0.04338835]
[1769301874308,0.03,89248.0,89234.0,0.01120649]
[1769301874519,0.3044096,89249.0,89234.0,0.01120649]
[1769301874520,0.03,89246.0,89235.0,0.01120636]
[1769301874715,0.03,89244.0,89235.0,0.01120636]
[1769301874945,0.03,89242.0,89234.0,0.0672386]
[1769301875128,0.03,89240.0,89232.0,0.01120674]
[1769301875288,0.03,89238.0,89232.0,0.06724006]
[1769301875471,0.29821286,89249.0,89232.0,0.01120674]
[1769301875675,0.29821286,89249.0,89231.0,0.37404847]
[1769301876174,0.29821286,89249.0,89231.0,0.35581931]
[1769301876427,0.29821286,89249.0,89231.0,0.33029848]
[1769301876620,0.03,89248.0,89231.0,0.33029848]
[1769301877319,0.03,89248.0,89232.0,0.01120674]
[1769301878126,0.03,89248.0,89231.0,0.33029848]
[1769301878305,0.03,89248.0,89232.0,0.01120674]
[1769301879848,0.03,89248.0,89231.0,0.33029848]
[1769301880409,0.03,89248.0,89232.0,0.01120674]
[1769301880608,0.03,89248.0,89231.0,0.31801534]
[1769301880807,0.03,89248.0,89231.0,0.36284275]
[1769301881049,0.03,89248.0,89231.0,0.31801534]
[1769301881212,0.03,89248.0,89232.0,0.01120674]
[1769301881414,0.03,89248.0,89231.0,0.31801534]
[1769301881834,0.03,89248.0,89231.0,0.37404961]
[1769301882036,0.03,89248.0,89231.0,0.31801534]
[1769301883049,0.03,89248.0,89231.0,0.37404965]
[1769301883346,0.03,89248.0,89233.0,0.01120661]
[1769301883547,0.03,89251.0,89238.0,0.28067894]
[1769301884315,0.03,89251.0,89238.0,0.25515811]
[1769301885453,0.03,89249.0,89246.0,0.08]
[1769301885762,0.03,89249.0,89246.0,0.04042915]
[1769301886063,0.03,89249.0,89246.0,0.0375985]
[1769301886271,0.03,89249.0,89238.0,0.21169906]
[1769301887584,0.03,89247.0,89238.0,0.21169906]
[1769301887793,0.03,89245.0,89238.0,0.21169906]
[1769301887959,0.00032842,89244.0,89238.0,0.21169906]
[1769301888157,0.28796523,89250.0,89238.0,0.21169906]
[1769301889057,0.03,89249.0,89238.0,0.21169906]
[1769301891106,0.03,89249.0,89235.0,0.31801484]
[1769301891520,0.03,89249.0,89235.0,0.30680848]
[1769301891697,0.03,89249.0,89235.0,0.27035022]
[1769301892096,0.03,89249.0,89235.0,0.28155658]
[1769301892523,0.03,89249.0,89235.0,0.25603586]
[1769301892699,0.03,89249.0,89235.0,0.3120676]
[1769301893031,0.03,89249.0,89235.0,0.25603586]
[1769301894245,0.03,89249.0,89235.0,0.31206766]
[1769301894549,0.03,89249.0,89236.0,0.01120623]
[1769301895256,0.03,89249.0,89235.0,0.30999506]
[1769301895740,0.03,89249.0,89235.0,0.24275713]
[1769301895947,0.03,89249.0,89235.0,0.25396349]
[1769301896122,0.03,89249.0,89235.0,0.24275713]
[1769301896307,0.03,89249.0,89235.0,0.21468264]
[1769301896515,0.03,89249.0,89235.0,0.21440835]
[1769301896714,0.03,89249.0,89235.0,0.21426662]
[1769301897681,0.03,89249.0,89235.0,0.17780843]
[1769301897979,0.03,89249.0,89235.0,0.17749363]
[1769301898173,0.05350929,89249.0,89235.0,0.17749363]
[1769301898543,0.05350929,89249.0,89239.0,0.28067897]
[1769301898744,0.15955385,89250.0,89240.0,0.02241147]
[1769301898944,0.15955385,89250.0,89240.0,0.02233481]
[1769301899662,0.12593621,89250.0,89240.0,0.02233481]
[1769301900079,0.01051572,89249.0,89240.0,0.02233481]
[1769301900285,0.03,89247.0,89240.0,0.02233481]
[1769301900488,0.03,89245.0,89239.0,0.28067897]
[1769301900783,0.03,89243.0,89239.0,0.28067897]
[1769301900986,0.03,89241.0,89239.0,0.28067897]
[1769301901131,0.01759733,89249.0,89239.0,0.28067897]
[1769301902382,0.03,89248.0,89239.0,0.28067897]
[1769301903160,0.03,89249.0,89236.0,0.01120623]
[1769301903383,0.03,89249.0,89240.0,0.2879706]
[1769301903740,0.03,89249.0,89240.0,0.28763239]
[1769301904334,0.03,89251.0,89240.0,0.28763239]
[1769301904564,0.03,89251.0,89236.0,0.01120623]
[1769301904760,0.03,89251.0,89240.0,0.2879706]
[1769301906203,0.03,89251.0,89240.0,0.27703316]
[1769301906409,0.03,89251.0,89240.0,0.25880408]
[1769301906579,0.03,89251.0,89241.0,0.0065564]
[1769301906920,0.03,89251.0,89240.0,0.25880408]
[1769301908282,0.03,89251.0,89240.0,0.25865074]
[1769301908475,0.03,89251.0,89240.0,0.23313005]
[1769301909027,0.03,89249.0,89240.0,0.23313005]
[1769301909651,0.03,89249.0,89235.0,0.17749363]
[1769301909848,0.02415373,89251.0,89235.0,0.17749363]
[1769301909849,0.00881351,89251.0,89235.0,0.17749363]
[1769301910175,0.31413188,89252.0,89236.0,0.01534279]
[1769301910368,0.03881351,89251.0,89236.0,0.01526611]
[1769301910746,0.03881351,89251.0,89236.0,0.01492794]
[1769301912792,0.34891346,89251.0,89235.0,0.1636253]
[1769301913271,0.03,89249.0,89235.0,0.1636253]
[1769301913454,0.03,89247.0,89235.0,0.1636253]
[1769301913636,0.03,89245.0,89235.0,0.15633369]
[1769301913836,0.03,89243.0,89235.0,0.15633369]
[1769301914037,0.03,89241.0,89235.0,0.15633369]
[1769301914295,0.03,89239.0,89235.0,0.44931768]
[1769301914477,0.00482085,89238.0,89235.0,0.44897957]
[1769301914678,0.0241563,89250.0,89235.0,0.44897957]
[1769301914924,0.0241563,89250.0,89236.0,0.00179109]
[1769301915038,0.31891346,89251.0,89236.0,0.01142795]
[1769301915646,0.03,89250.0,89236.0,0.01142795]
[1769301915963,0.04452095,89250.0,89240.0,0.2879706]
[1769301916167,0.03,89250.0,89241.0,0.00498091]
[1769301916356,0.03,89250.0,89240.0,0.23826439]
[1769301916558,0.03,89249.0,89240.0,0.23826439]
[1769301917886,0.03,89252.0,89240.0,0.23826439]
[1769301918736,0.03,89252.0,89240.0,0.20974832]
[1769301920756,0.03,89252.0,89240.0,0.19516509]
[1769301922799,0.03,89252.0,89241.0,0.00644166]
[1769301924538,0.03,89252.0,89235.0,0.6603987]
[1769301924670,0.03,89252.0,89235.0,0.62394061]
[1769301925315,0.03,89252.0,89235.0,0.56790898]
[1769301925483,0.03,89252.0,89237.0,0.01120611]
[1769301926121,0.03,89252.0,89237.0,0.01086801]
[1769301926279,0.03,89252.0,89236.0,0.04893869]
[1769301926480,0.03,89250.0,89236.0,0.04893869]
[1769301926679,0.03,89248.0,89236.0,0.04893869]
[1769301926936,0.31891346,89258.0,89236.0,0.34226085]
[1769301927084,0.0004,89259.0,89236.0,0.34226085]
[1769301927085,0.30522834,89256.0,89236.0,0.34226085]
[1769301927286,0.43108414,89255.0,89237.0,0.01120611]
[1769301927488,0.31891346,89255.0,89237.0,0.01120611]
[1769301927703,0.03361715,89254.0,89237.0,0.01120611]
[1769301927908,0.03,89253.0,89237.0,0.06723664]
[1769301928346,0.03,89253.0,89238.0,0.01120598]
[1769301928522,0.03,89253.0,89237.0,0.3605588]
[1769301928933,0.03,89252.0,89240.0,0.28794643]
[1769301929948,0.03,89251.0,89240.0,0.28794643]
[1769301930161,0.03,89251.0,89237.0,0.29332216]
[1769301931125,0.03,89250.0,89237.0,0.29332216]
[1769301931487,0.03,89250.0,89238.0,0.00112067]
[1769301931685,0.34891346,89250.0,89238.0,0.00112067]
[1769301931889,0.34891346,89248.0,89232.0,0.0001496]
[1769301932095,0.33522834,89248.0,89233.0,0.03361711]
[1769301932329,0.34891346,89246.0,89233.0,0.03361711]
[1769301932551,0.34891346,89246.0,89232.0,0.0001496]
[1769301933151,0.03,89244.0,89232.0,0.0001496]
[1769301933447,0.03,89244.0,89230.0,0.32156354]
[1769301933660,0.03,89244.0,89230.0,0.03327915]
[1769301933798,0.03,89244.0,89230.0,0.03294122]
[1769301935301,0.03,89244.0,89230.0,0.32088765]
[1769301936255,0.03,89244.0,89230.0,0.30995035]
[1769301936483,0.03,89244.0,89230.0,0.29172151]
[1769301936672,0.03,89244.0,89230.0,0.28794643]
[1769301938025,0.03,89244.0,89230.0,0.29915342]
[1769301938254,0.03,89244.0,89231.0,0.01120686]
[1769301938866,0.03,89244.0,89232.0,0.01120674]
[1769301939037,0.03,89242.0,89231.0,0.01120686]
[1769301939337,0.03,89240.0,89231.0,0.01120686]
[1769301939551,0.03,89238.0,89231.0,0.01120686]
[1769301939689,0.03,89236.0,89231.0,0.01120686]
[1769301939901,0.00482045,89235.0,89231.0,0.01120686]
[1769301940101,0.31082949,89245.0,89231.0,0.01120686]
[1769301940427,0.31082949,89245.0,89229.0,0.00810055]
[1769301940635,0.31082949,89245.0,89231.0,0.05603399]
[1769301940836,0.03,89244.0,89231.0,0.01120686]
[1769301941041,0.03,89244.0,89231.0,0.06724104]
[1769301941420,0.03,89244.0,89232.0,0.06724043]
[1769301941620,0.03,89244.0,89233.0,0.06723964]
[1769301942060,0.03,89244.0,89234.0,0.01120649]
[1769301942458,0.03,89244.0,89233.0,0.06723964]
[1769301942620,0.03,89244.0,89234.0,0.01120649]
[1769301943066,0.29382949,89245.0,89233.0,0.01120661]
[1769301943268,0.29382949,89245.0,89231.0,0.01120686]
[1769301944856,0.29382949,89245.0,89230.0,0.28527882]
[1769301945545,0.29382949,89245.0,89231.0,0.01120686]
[1769301945758,0.29382949,89245.0,89230.0,0.28527882]
[1769301945937,0.29382949,89245.0,89231.0,0.01120686]
[1769301946954,0.29382949,89245.0,89232.0,0.01120674]
[1769301948310,0.29382949,89245.0,89230.0,0.25611269]
[1769301948491,0.29382949,89245.0,89230.0,0.23059232]
[1769301948986,0.29382949,89245.0,89230.0,0.21938533]
[1769301950398,0.29382949,89245.0,89230.0,0.26420943]
[1769301951309,0.29382949,89245.0,89230.0,0.25300244]
[1769301951521,0.29382949,89245.0,89230.0,0.26420943]
[1769301951712,0.29382949,89245.0,89231.0,0.01120686]
[1769301951914,0.01051558,89244.0,89231.0,0.01120686]
[1769301952129,0.03,89242.0,89231.0,0.01120686]
[1769301952308,0.03,89240.0,89231.0,0.01120686]
[1769301952512,0.03,89238.0,89230.0,0.32024436]
[1769301952811,0.03,89236.0,89230.0,0.26420943]
[1769301953012,0.00492058,89235.0,89231.0,0.01120686]
[1769301953209,0.29382949,89245.0,89231.0,0.01120686]
[1769301953527,0.29382949,89245.0,89230.0,0.54210484]
[1769301953708,0.29382949,89245.0,89230.0,0.55331183]
[1769301954093,0.03,89244.0,89232.0,0.01120674]
[1769301954295,0.03,89244.0,89233.0,0.06723929]
[1769301954518,0.03,89244.0,89233.0,0.06723947]
[1769301954891,0.03,89244.0,89233.0,0.06065641]
[1769301955234,0.03,89245.0,89233.0,0.00462355]
[1769301955445,0.03,89245.0,89232.0,0.01120674]
[1769301956001,0.03,89245.0,89232.0,0.01236499]
[1769301956446,0.03,89245.0,89231.0,0.01344236]
[1769301956628,0.03,89245.0,89232.0,0.01120674]
[1769301956945,0.03,89245.0,89231.0,0.01120686]
[1769301957152,0.03,89245.0,89231.0,0.06724102]
[1769301957879,0.03,89245.0,89230.0,0.54210484]
[1769301958231,0.03,89245.0,89230.0,0.60934656]
[1769301958603,0.03,89245.0,89230.0,0.5460203]
[1769301959771,0.03,89245.0,89230.0,0.53481331]
[1769301960542,0.03,89245.0,89230.0,0.5460203]
[1769301960750,0.03,89245.0,89230.0,0.53481331]
[1769301961142,0.11974477,89246.0,89230.0,0.5460203]
[1769301961350,0.11974477,89246.0,89231.0,0.01120686]
[1769301962158,0.11974477,89246.0,89230.0,0.5460203]
[1769301962661,0.43057426,89246.0,89230.0,0.61066594]
[1769301964466,0.43057426,89246.0,89230.0,0.59314553]
[1769301964899,0.43057426,89246.0,89230.0,0.57704883]
[1769301965086,0.01051627,89245.0,89230.0,0.57704883]
[1769301965286,0.03,89243.0,89230.0,0.57704883]
[1769301965486,0.03,89241.0,89230.0,0.57704883]
[1769301965721,0.03,89239.0,89230.0,0.57704883]
[1769301965953,0.03,89237.0,89230.0,0.57704883]
[1769301966219,0.03,89235.0,89228.0,0.36366453]
[1769301966417,0.00032864,89234.0,89228.0,0.00453088]
[1769301966595,0.31715648,89242.0,89227.0,0.28794643]
[1769301966804,0.31720402,89242.0,89230.0,0.28794643]
[1769301967326,0.03,89241.0,89230.0,0.28794643]
[1769301967526,0.03,89237.0,89228.0,0.17212]
[1769301967687,0.31510556,89239.0,89228.0,0.17212]
[1769301967688,0.03,89235.0,89228.0,0.17212]
[1769301967890,0.03,89235.0,89228.0,0.15753624]
[1769301968655,0.03,89234.0,89228.0,0.15753624]
[1769301969749,0.03,89233.0,89228.0,0.15753624]
[1769301969949,0.03,89233.0,89228.0,0.47927479]
[1769301970952,0.2612454,89241.0,89228.0,0.47927479]
[1769301972571,0.2612454,89241.0,89228.0,0.46175322]
[1769301972756,0.2612454,89241.0,89236.0,0.08]
[1769301972953,0.2612454,89241.0,89236.0,0.03135286]
[1769301973179,0.29486474,89241.0,89236.0,0.01713191]
[1769301973425,0.29486474,89241.0,89236.0,0.00900472]
[1769301973544,0.29486474,89241.0,89236.0,0.00171285]
[1769301974078,0.29486474,89241.0,89228.0,0.46175322]
[1769301976382,0.29486474,89241.0,89228.0,0.43258572]
[1769301978626,0.01051116,89240.0,89228.0,0.43258572]
[1769301978798,0.01051116,89239.0,89228.0,0.43258572]
[1769301978999,0.01051116,89238.0,89228.0,0.43258572]
[1769301979225,0.01051116,89237.0,89228.0,0.43258572]
[1769301979382,0.01051116,89236.0,89228.0,0.43258572]
[1769301979585,0.01051116,89235.0,89228.0,0.43258572]
[1769301979791,0.01051116,89234.0,89228.0,0.43258572]
[1769301979997,0.01051116,89233.0,89228.0,0.43258572]
[1769301980209,0.00032848,89232.0,89228.0,0.43258572]
[1769301980410,0.29486474,89241.0,89228.0,0.43258572]
[1769301980597,0.0271022,89240.0,89228.0,0.40706412]
[1769301981076,0.03,89239.0,89228.0,0.40706412]
[1769301986395,0.03,89239.0,89228.0,0.37789658]
[1769301988539,0.03,89239.0,89228.0,0.35237498]
[1769301988734,0.03,89239.0,89228.0,0.3450831]
[1769301989788,0.03,89239.0,89236.0,0.08]
[1769301990116,0.03,89239.0,89228.0,0.3450831]
[1769301992340,0.03,89237.0,89228.0,0.3450831]
[1769301992669,0.03,89235.0,89228.0,0.3450831]
[1769301992818,0.03,89233.0,89228.0,0.3450831]
[1769301993013,0.00032853,89232.0,89228.0,0.3450831]
[1769301993263,0.02429004,89240.0,89228.0,0.3450831]
[1769301993687,0.03290938,89241.0,89228.0,0.3450831]
[1769301994652,0.03,89240.0,89228.0,0.3450831]
[1769301996396,0.03,89240.0,89228.0,0.32391558]
[1769301996590,0.03,89240.0,89228.0,0.29839399]
[1769301997095,0.03,89240.0,89229.0,0.02149887]
[1769301997279,0.03,89240.0,89230.0,0.28803384]
[1769301997476,0.03,89240.0,89231.0,0.01677153]
[1769301997860,0.03,89248.0,89233.0,0.01120661]
[1769301998079,0.03,89244.0,89235.0,0.01120636]
[1769301998335,0.03,89244.0,89236.0,0.01677146]
[1769301998738,0.03,89244.0,89237.0,0.01677127]
[1769301998893,0.03,89244.0,89236.0,0.01677127]
[1769301999102,0.03,89244.0,89234.0,0.01120649]
[1769301999103,0.03,89243.0,89235.0,0.33169582]
[1769301999303,0.12548015,89250.0,89236.0,0.01120623]
[1769301999610,0.12548015,89250.0,89237.0,0.01141046]
[1769301999786,0.12548015,89250.0,89236.0,0.01141114]
[1769302000014,0.03361934,89249.0,89236.0,0.01141114]
[1769302000147,0.03,89248.0,89236.0,0.02261737]
[1769302000389,0.03,89248.0,89237.0,0.01141875]
[1769302000582,0.03,89248.0,89236.0,0.02262565]
[1769302000790,0.03,89248.0,89236.0,0.01141942]
[1769302000981,0.03,89248.0,89236.0,0.32161761]
[1769302001205,0.03,89247.0,89236.0,0.303718]
[1769302002102,0.03,89247.0,89237.0,0.01677713]
[1769302002310,0.03,89249.0,89237.0,0.01677713]
[1769302003935,0.03,89248.0,89237.0,0.01677713]
[1769302004143,0.03,89248.0,89236.0,0.01677763]
[1769302004538,0.03,89248.0,89235.0,0.06723804]
[1769302005372,0.03,89246.0,89236.0,0.01120623]
[1769302005569,0.03,89244.0,89236.0,0.01120623]
[1769302005815,0.03,89242.0,89236.0,0.01120623]
[1769302005995,0.03,89240.0,89235.0,0.01120636]
[1769302006218,0.00525545,89239.0,89235.0,0.01120636]
[1769302006455,0.311513,89249.0,89233.0,0.06728611]
[1769302007512,0.03,89248.0,89234.0,0.01120649]
[1769302007639,0.03,89248.0,89235.0,0.01120636]
[1769302008700,0.03,89246.0,89243.0,0.08]
[1769302012743,0.03,89246.0,89243.0,0.05447959]
[1769302013151,0.03,89244.0,89233.0,0.03366556]
[1769302013605,0.03,89242.0,89233.0,0.03366556]
[1769302014592,0.03,89241.0,89233.0,0.03366556]
[1769302015720,0.03,89240.0,89233.0,0.03366556]
[1769302016275,0.27528661,89247.0,89233.0,0.03366556]
[1769302016476,0.27528661,89247.0,89231.0,0.303718]
[1769302016712,0.27537185,89247.0,89231.0,0.303718]
[1769302016928,0.03,89246.0,89231.0,0.303718]
[1769302018302,0.03,89244.0,89231.0,0.303718]
[1769302018539,0.03,89242.0,89231.0,0.303718]
[1769302018754,0.03,89240.0,89231.0,0.303718]
[1769302018957,0.03,89238.0,89231.0,0.303718]
[1769302019162,0.03,89236.0,89231.0,0.33805814]
[1769302019359,0.00065693,89235.0,89232.0,0.303718]
[1769302019560,0.27537185,89247.0,89232.0,0.303718]
[1769302020487,0.03,89246.0,89232.0,0.303718]
[1769302020641,0.03,89246.0,89232.0,0.27890535]
[1769302022543,0.03,89246.0,89232.0,0.29011209]
[1769302023352,0.03,89246.0,89233.0,0.01120661]
[1769302024299,0.03,89246.0,89234.0,0.01788008]
[1769302026386,0.03,89244.0,89232.0,0.34606565]
[1769302026592,0.03,89242.0,89232.0,0.34606565]
[1769302027482,0.03,89245.0,89233.0,0.01120661]
[1769302027680,0.03,89243.0,89233.0,0.01120661]
[1769302027916,0.03,89243.0,89232.0,0.34606565]
[1769302027917,0.03,89243.0,89232.0,0.29003198]
[1769302028678,0.03,89242.0,89232.0,0.26451103]
[1769302029052,0.23909457,89247.0,89232.0,0.25330429]
[1769302030294,0.03,89246.0,89232.0,0.25330429]
[1769302031451,0.03,89244.0,89232.0,0.25330429]
[1769302031667,0.03,89242.0,89232.0,0.25330429]
[1769302031862,0.03,89240.0,89232.0,0.25330429]
[1769302032023,0.03,89238.0,89232.0,0.25330429]
[1769302032228,0.03,89236.0,89232.0,0.25330429]
[1769302032524,0.03,89234.0,89232.0,0.25330429]
[1769302032904,0.03251418,89233.0,89232.0,0.25330429]
[1769302033688,0.03251418,89233.0,89232.0,0.24601259]
[1769302034030,0.03,89246.0,89232.0,0.24601259]
[1769302036436,0.03,89246.0,89232.0,0.21684579]
[1769302036640,0.03,89246.0,89232.0,0.20253158]
[1769302037944,0.03,89246.0,89232.0,0.19132484]
[1769302039242,0.03,89246.0,89232.0,0.20253158]
[1769302039627,0.03,89246.0,89232.0,0.19132484]
[1769302039826,0.03,89246.0,89232.0,0.20253158]
[1769302040061,0.03,89246.0,89232.0,0.25856507]
[1769302040263,0.03,89246.0,89233.0,0.01120661]
[1769302040465,0.03,89246.0,89232.0,0.25856507]
[1769302040774,0.03,89246.0,89233.0,0.01120661]
[1769302041015,0.03,89246.0,89232.0,0.25856507]
[1769302041493,0.03,89246.0,89232.0,0.20253158]
[1769302041872,0.03,89246.0,89232.0,0.01120674]
[1769302042672,0.03,89246.0,89233.0,0.01120661]
[1769302042876,0.03,89246.0,89232.0,0.06724019]
[1769302043565,0.03,89246.0,89233.0,0.01120661]
[1769302043733,0.03,89246.0,89232.0,0.01120674]
[1769302044705,0.03,89244.0,89231.0,0.39098512]
[1769302044910,0.03,89242.0,89231.0,0.39098512]
[1769302045107,0.03,89240.0,89232.0,0.06723992]
[1769302045312,0.03,89238.0,89233.0,0.01120661]
[1769302045512,0.03,89236.0,89232.0,0.06723992]
[1769302045826,0.03,89234.0,89232.0,0.06723992]
[1769302046026,0.04051577,89233.0,89232.0,0.06723992]
[1769302046571,0.04051577,89233.0,89232.0,0.03807312]
[1769302046847,0.21561034,89247.0,89233.0,0.01120661]
[1769302047049,0.03,89246.0,89233.0,0.01120661]
[1769302047199,0.03,89246.0,89232.0,0.03807312]
[1769302048241,0.03,89246.0,89232.0,0.01120674]
[1769302048477,0.03,89246.0,89233.0,0.01120661]